fUSD/lending_fUSD_20250216
["ID","MTS","AMOUNT","RATE_DAILY","PERIOD"]
[353267315,1739722288199,-1707.06,0.00013698,2]
[353267316,1739722288210,-1707.19344778,0.00013698,2]
[353267317,1739722288220,-500.0,0.00013699,2]
[353267318,1739722288230,-500.0,0.00013699,2]
[353267319,1739722288239,-500.0,0.00013699,2]
[353267320,1739722288248,-500.0,0.00013699,2]
[353267321,1739722288259,-500.0,0.00013699,2]
[353267322,1739722288268,-500.0,0.00013699,2]
[353267323,1739722288278,-500.0,0.00013699,2]
[353267324,1739722288289,-500.0,0.00013699,2]
[353267325,1739722288442,-500.0,0.00013699,2]
[353267326,1739722288452,-2161.33,0.00013699,7]
[353267327,1739722288461,-2161.33,0.00013699,7]
[353267328,1739722288470,-2161.33,0.00013699,7]
[353267329,1739722288480,-2161.33,0.00013699,7]
[353267330,1739722288489,-3089.21,0.00013699,2]
[353267331,1739722288499,-280.65821,0.00013699,2]
[353267332,1739722288509,-280.65821,0.00013699,2]
[353267333,1739722288518,-280.65821,0.00013699,2]
[353267334,1739722288528,-280.65821,0.00013699,2]
[353267335,1739722288538,-280.65821,0.00013699,2]
[353267336,1739722288548,-280.65821,0.00013699,2]
[353267337,1739722288559,-280.65821,0.00013699,2]
[353267338,1739722288568,-280.65821,0.00013699,2]
[353267339,1739722288577,-280.65821,0.00013699,2]
[353267340,1739722288587,-280.65821,0.00013699,2]
[353267341,1739722288597,-280.65821,0.00013699,2]
[353267342,1739722288607,-280.65821,0.00013699,2]
[353267343,1739722288617,-280.65821,0.00013699,2]
[353267344,1739722288628,-280.65821,0.00013699,2]
[353267345,1739722288638,-280.65821,0.00013699,2]
[353267346,1739722288647,-280.65821,0.00013699,2]
[353267347,1739722288658,-280.65821,0.00013699,2]
[353267348,1739722288668,-280.6582,0.00013699,2]
[353267349,1739722288678,-500.0,0.00013699,2]
[353267350,1739722288687,-910.79,0.00013699,2]
[353267351,1739722288697,-200.0,0.00013699,2]
[353267352,1739722288707,-49266.85,0.00013699,2]
[353267353,1739722288716,-12141.81,0.00013699,2]
[353267354,1739722288726,-680.86,0.00013699,2]
[353267355,1739722288736,-3117.65,0.00013699,2]
[353267356,1739722288745,-6491.0,0.00013699,2]
[353267357,1739722288755,-404.722999,0.00013699,2]
[353267358,1739722288765,-404.722999,0.00013699,2]
[353267359,1739722288775,-151.0,0.00013699,2]
[353267360,1739722288786,-261.990651,0.00013699,2]
[353267361,1739722288797,-261.990651,0.00013699,2]
[353267362,1739722288807,-2028.48255,0.00013699,2]
[353267363,1739722288817,-2028.48255,0.00013699,2]
[353267364,1739722288827,-215.845351,0.00013699,2]
[353267365,1739722288837,-215.845351,0.00013699,2]
[353267366,1739722288846,-151.0,0.00013699,2]
[353267367,1739722288855,-10000.0,0.00013699,2]
[353267368,1739722288866,-10000.0,0.00013699,2]
[353267369,1739722288875,-10000.0,0.00013699,2]
[353267370,1739722288884,-10000.0,0.00013699,2]
[353267371,1739722288894,-10000.0,0.00013699,2]
[353267372,1739722288903,-10000.0,0.00013699,2]
[353267373,1739722288913,-198.614322,0.00013699,2]
[353267374,1739722288922,-198.614322,0.00013699,2]
[353267375,1739722288932,-553.720203,0.00013699,2]
[353267376,1739722288941,-151.0,0.00013699,2]
[353267377,1739722288950,-553.720203,0.00013699,2]
[353267378,1739722288960,-500.0,0.00013699,2]
[353267379,1739722288970,-500.0,0.00013699,2]
[353267380,1739722288980,-500.0,0.00013699,2]
[353267381,1739722288989,-562.11877994,0.00013699,2]
[353267382,1739722288999,-500.0,0.00013699,2]
[353267383,1739722289009,-2689.395126,0.00013699,2]
[353267384,1739722289018,-2689.395126,0.00013699,2]
[353267385,1739722289029,-151.0,0.00013699,2]
[353267386,1739722289042,-151.699989,0.000137,2]
[353267387,1739722289050,-151.0,0.000137,2]
[353267388,1739722289060,-151.0,0.000137,2]
[353267389,1739722289070,-190.102501,0.000137,2]
[353267390,1739722289080,-190.102501,0.000137,2]
[353267391,1739722289091,-151.0,0.000137,2]
[353267392,1739722289101,-423.955814,0.000137,2]
[353267393,1739722289111,-423.955814,0.000137,2]
[353267394,1739722289120,-235.374187,0.000137,2]
[353267395,1739722289129,-235.374187,0.000137,2]
[353267396,1739722289138,-151.0,0.000137,2]
[353267397,1739722289147,-151.0,0.000137,2]
[353267398,1739722289157,-2010.234707,0.000137,2]
[353267399,1739722289166,-2010.234707,0.000137,2]
[353267400,1739722289176,-8791.21,0.000137,2]
[353267401,1739722289185,-8791.21,0.000137,2]
[353267402,1739722289194,-500.0,0.00013704,2]
[353267403,1739722289204,-600.0,0.00013704,2]
[353267404,1739722289214,-600.0,0.00013704,2]
[353267405,1739722289224,-1500.0,0.00013722,2]
[353267406,1739722289233,-1060.0,0.0001373,2]
[353267407,1739722289243,-287.61165658,0.00013762,2]
[353267408,1739722289253,-529.74386114,0.00013762,2]
[353267409,1739722289262,-152.0,0.00013766,9]
[353267410,1739722289271,-4934.5490034,0.000138,5]
[353267411,1739722289281,-264.4822129,0.0001389,2]
[353267412,1739722289290,-179035.85487035,0.000139,2]
[353267413,1739722289300,-110104.43166892,0.000139,2]
[353267414,1739722289309,-17618.48334038,0.000139,2]
[353267415,1739722289534,-114582.84745881,0.000139,2]
[353267416,1739722289545,-162.099236,0.000139,2]
[353267417,1739722289555,-162.099236,0.000139,2]
[353267418,1739722289564,-178.682813,0.000139,2]
[353267419,1739722289573,-322.805,0.000139,2]
[353267420,1739722289583,-322.805,0.000139,2]
[353267421,1739722289592,-339.934172,0.000139,2]
[353267422,1739722289602,-339.934172,0.000139,2]
[353267423,1739722289612,-151.0,0.000139,2]
[353267424,1739722289621,-151.0,0.000139,2]
[353267425,1739722289630,-182.476718,0.000139,2]
[353267426,1739722289640,-182.476718,0.000139,2]
[353267427,1739722289649,-779.492013,0.000139,2]
[353267428,1739722289659,-779.492013,0.000139,2]
[353267429,1739722289669,-151.0,0.000139,2]
[353267430,1739722289681,-151.0,0.000139,2]
[353267431,1739722289691,-151.0,0.000139,2]
[353267432,1739722289700,-3749.719421,0.000139,2]
[353267433,1739722289709,-3749.719421,0.000139,2]
[353267434,1739722289719,-151.0,0.000139,2]
[353267435,1739722289728,-151.0,0.000139,2]
[353267436,1739722289737,-332.869596,0.000139,2]
[353267437,1739722289746,-332.869596,0.000139,2]
[353267438,1739722289755,-151.0,0.000139,2]
[353267439,1739722289765,-151.0,0.000139,2]
[353267440,1739722289775,-1768.352971,0.000139,2]
[353267441,1739722289784,-1768.352971,0.000139,2]
[353267442,1739722289792,-302.882515,0.000139,2]
[353267443,1739722289801,-302.882515,0.000139,2]
[353267444,1739722289810,-151.0,0.000139,2]
[353267445,1739722289819,-151.0,0.000139,2]
[353267446,1739722289828,-151.0,0.000139,2]
[353267447,1739722289838,-151.0,0.000139,2]
[353267448,1739722289847,-151.0,0.000139,2]
[353267449,1739722289856,-151.0,0.000139,2]
[353267450,1739722289866,-522.067108,0.000139,2]
[353267451,1739722289875,-403.62402,0.000139,2]
[353267452,1739722289884,-522.067108,0.000139,2]
[353267453,1739722289893,-403.62402,0.000139,2]
[353267454,1739722289902,-151.0,0.000139,2]
[353267455,1739722289912,-151.0,0.000139,2]
[353267456,1739722289921,-188.935138,0.000139,2]
[353267457,1739722289931,-188.935138,0.000139,2]
[353267458,1739722289940,-151.0,0.000139,2]
[353267459,1739722289950,-151.0,0.000139,2]
[353267460,1739722289959,-930.431967,0.000139,2]
[353267461,1739722289970,-930.431967,0.000139,2]
[353267462,1739722289982,-3357.148566,0.000139,2]
[353267463,1739722289993,-384.472713,0.000139,2]
[353267464,1739722290003,-384.472713,0.000139,2]
[353267465,1739722290012,-341.804092,0.000139,2]
[353267466,1739722290021,-341.804092,0.000139,2]
[353267467,1739722290031,-151.0,0.000139,2]
[353267468,1739722290045,-151.0,0.000139,2]
[353267469,1739722290054,-190.102501,0.000139,2]
[353267470,1739722290063,-190.102501,0.000139,2]
[353267471,1739722290072,-198.614322,0.000139,2]
[353267472,1739722290083,-198.614322,0.000139,2]
[353267473,1739722290092,-217.519626,0.000139,2]
[353267474,1739722290101,-151.0,0.000139,2]
[353267475,1739722290112,-423.955814,0.000139,2]
[353267476,1739722290122,-423.955814,0.000139,2]
[353267477,1739722290132,-235.374187,0.000139,2]
[353267478,1739722290141,-235.374187,0.000139,2]
[353267479,1739722290151,-151.0,0.000139,2]
[353267480,1739722290160,-151.0,0.000139,2]
[353267481,1739722290169,-151.0,0.000139,2]
[353267482,1739722290180,-2689.395126,0.000139,2]
[353267483,1739722290190,-2689.395126,0.000139,2]
[353267484,1739722290199,-279.565284,0.000139,2]
[353267485,1739722290209,-279.565284,0.000139,2]
[353267486,1739722290219,-151.0,0.000139,2]
[353267487,1739722290228,-151.0,0.000139,2]
[353267488,1739722290238,-305.72,0.000139,2]
[353267489,1739722290246,-305.72,0.000139,2]
[353267490,1739722290256,-151.0,0.000139,2]
[353267491,1739722290265,-225.15803,0.000139,2]
[353267492,1739722290274,-225.15803,0.000139,2]
[353267493,1739722290284,-2010.234707,0.000139,2]
[353267494,1739722290293,-2010.234707,0.000139,2]
[353267495,1739722290302,-270.932697,0.000139,2]
[353267496,1739722290312,-270.932697,0.000139,2]
[353267497,1739722290322,-488.052487,0.000139,2]
[353267498,1739722290332,-488.052487,0.000139,2]
[353267499,1739722290341,-152.0,0.00013941,10]
[353267500,1739722290350,-2161.33,0.00013973,7]
[353267501,1739722290359,-2161.33,0.00013973,7]
[353267502,1739722290368,-1000.0,0.00013982,2]
[353267503,1739722290377,-32354.83275823,0.00014,2]
[353267504,1739722290386,-3970.96438176,0.00014,2]
[353267505,1739722290395,-461.5104055,0.00014,4]
[353267506,1739722290404,-2028.48255,0.00014,2]
[353267507,1739722290413,-2028.48255,0.00014,2]
[353267508,1739722290422,-151.0,0.00014,2]
[353267509,1739722290431,-485.74,0.00014029,2]
[353267510,1739722290440,-226.849896,0.00014044,2]
[353267511,1739722290449,-226.849896,0.00014044,2]
[353267512,1739722290457,-192.62,0.00014076,2]
[353267513,1739722290466,-152.0,0.00014116,11]
[353267514,1739722290475,-877.93,0.00014196,2]
[353267515,1739722290484,-2161.33,0.00014247,7]
[353267516,1739722290493,-2161.33,0.00014247,7]
[353267517,1739722290503,-421.23963344,0.00014273,2]
[353267518,1739722290512,-152.0,0.0001429,12]
[353267519,1739722290521,-73802.0,0.0001433,2]
[353267520,1739722290530,-404.722999,0.0001433,2]
[353267521,1739722290540,-404.722999,0.0001433,2]
[353267522,1739722290549,-151.0,0.0001433,2]
[353267523,1739722290559,-261.990651,0.0001433,2]
[353267524,1739722290568,-261.990651,0.0001433,2]
[353267525,1739722290577,-296.021654,0.0001433,2]
[353267526,1739722290586,-151.0,0.0001433,2]
[353267527,1739722290596,-930.431967,0.0001433,2]
[353267528,1739722290605,-930.431967,0.0001433,2]
[353267529,1739722290614,-215.845351,0.0001433,2]
[353267530,1739722290623,-215.845351,0.0001433,2]
[353267531,1739722290633,-3357.148566,0.0001433,2]
[353267532,1739722290642,-384.472713,0.0001433,2]
[353267533,1739722290651,-384.472713,0.0001433,2]
[353267534,1739722290660,-341.804092,0.0001433,2]
[353267535,1739722290669,-341.804092,0.0001433,2]
[353267536,1739722290679,-10000.0,0.0001433,2]
[353267537,1739722290688,-10000.0,0.0001433,2]
[353267538,1739722290698,-10000.0,0.0001433,2]
[353267539,1739722290707,-10000.0,0.0001433,2]
[353267540,1739722290716,-10000.0,0.0001433,2]
[353267541,1739722290725,-10000.0,0.0001433,2]
[353267542,1739722290735,-553.720203,0.0001433,2]
[353267543,1739722290744,-553.720203,0.0001433,2]
[353267544,1739722290754,-305.72,0.0001433,2]
[353267545,1739722290763,-305.72,0.0001433,2]
[353267546,1739722290772,-270.932697,0.0001433,2]
[353267547,1739722290781,-270.932697,0.0001433,2]
[353267548,1739722290791,-488.052487,0.0001433,2]
[353267549,1739722290801,-488.052487,0.0001433,2]
[353267550,1739722290810,-9872.49470108,0.0001439,2]
[353267551,1739722290819,-6194.95917003,0.00014399,2]
[353267552,1739722290829,-1060.0,0.00014417,2]
[353267553,1739722290838,-625.51999962,0.00014443,2]
[353267554,1739722290847,-152.0,0.00014465,13]
[353267555,1739722290856,-113233.93376808,0.000145,2]
[353267556,1739722290866,-2752.28,0.0001452,3]
[353267557,1739722290875,-2161.33,0.00014521,7]
[353267558,1739722290885,-2161.33,0.00014521,7]
[353267559,1739722290894,-7827.0,0.000146,2]
[353267560,1739722290904,-152.0,0.0001464,14]
[353267561,1739722290913,-39544.70581233,0.00014756,2]
[353267562,1739722290924,-151.0,0.00014756,2]
[353267563,1739722290934,-279.565284,0.00014756,2]
[353267564,1739722290944,-279.565284,0.00014756,2]
[353267565,1739722290953,-151.0,0.00014756,2]
[353267566,1739722290963,-151.0,0.00014756,2]
[353267567,1739722290975,-225.15803,0.00014756,2]
[353267568,1739722290983,-225.15803,0.00014756,2]
[353267569,1739722290993,-175.24938405,0.00014769,2]
[353267570,1739722291146,-243.6332907,0.0001479,2]
[353267571,1739722291156,-222.7843685,0.0001479,2]
[353267572,1739722291167,-2752.28,0.00014794,3]
[353267573,1739722291177,-2161.33,0.00014795,7]
[353267574,1739722291186,-2161.33,0.00014795,7]
[353267575,1739722291195,-1000.0,0.00014799,7]
[353267576,1739722291204,-1000.0,0.00014799,2]
[353267577,1739722291213,-203.8,0.000148,2]
[353267578,1739722291222,-273.49,0.000148,5]
[353267579,1739722291231,-5122.07061529,0.000148,2]
[353267580,1739722291242,-162.099236,0.000148,2]
[353267581,1739722291252,-162.099236,0.000148,2]
[353267582,1739722291262,-322.805,0.000148,2]
[353267583,1739722291271,-322.805,0.000148,2]
[353267584,1739722291281,-339.934172,0.000148,2]
[353267585,1739722291290,-339.934172,0.000148,2]
[353267586,1739722291299,-151.0,0.000148,2]
[353267587,1739722291308,-151.0,0.000148,2]
[353267588,1739722291318,-182.476718,0.000148,2]
[353267589,1739722291327,-182.476718,0.000148,2]
[353267590,1739722291337,-779.492013,0.000148,2]
[353267591,1739722291346,-779.492013,0.000148,2]
[353267592,1739722291355,-151.0,0.000148,2]
[353267593,1739722291365,-151.0,0.000148,2]
[353267594,1739722291374,-151.0,0.000148,2]
[353267595,1739722291383,-3749.719421,0.000148,2]
[353267596,1739722291392,-3749.719421,0.000148,2]
[353267597,1739722291401,-226.849896,0.000148,2]
[353267598,1739722291410,-226.849896,0.000148,2]
[353267599,1739722291420,-151.0,0.000148,2]
[353267600,1739722291429,-151.0,0.000148,2]
[353267601,1739722291439,-404.722999,0.000148,2]
[353267602,1739722291447,-332.869596,0.000148,2]
[353267603,1739722291456,-404.722999,0.000148,2]
[353267604,1739722291465,-332.869596,0.000148,2]
[353267605,1739722291474,-151.0,0.000148,2]
[353267606,1739722291483,-151.0,0.000148,2]
[353267607,1739722291492,-1768.352971,0.000148,2]
[353267608,1739722291502,-1768.352971,0.000148,2]
[353267609,1739722291511,-302.882515,0.000148,2]
[353267610,1739722291520,-302.882515,0.000148,2]
[353267611,1739722291529,-151.0,0.000148,2]
[353267612,1739722291538,-151.0,0.000148,2]
[353267613,1739722291547,-151.0,0.000148,2]
[353267614,1739722291556,-151.0,0.000148,2]
[353267615,1739722291566,-151.0,0.000148,2]
[353267616,1739722291576,-151.0,0.000148,2]
[353267617,1739722291585,-151.0,0.000148,2]
[353267618,1739722291594,-522.067108,0.000148,2]
[353267619,1739722291604,-403.62402,0.000148,2]
[353267620,1739722291613,-522.067108,0.000148,2]
[353267621,1739722291622,-403.62402,0.000148,2]
[353267622,1739722291631,-151.0,0.000148,2]
[353267623,1739722291641,-151.0,0.000148,2]
[353267624,1739722291650,-188.935138,0.000148,2]
[353267625,1739722291659,-188.935138,0.000148,2]
[353267626,1739722291668,-261.990651,0.000148,2]
[353267627,1739722291679,-261.990651,0.000148,2]
[353267628,1739722291688,-151.0,0.000148,2]
[353267629,1739722291698,-2028.48255,0.000148,2]
[353267630,1739722291707,-2028.48255,0.000148,2]
[353267631,1739722291716,-930.431967,0.000148,2]
[353267632,1739722291725,-930.431967,0.000148,2]
[353267633,1739722291734,-215.845351,0.000148,2]
[353267634,1739722291743,-215.845351,0.000148,2]
[353267635,1739722291752,-3357.148566,0.000148,2]
[353267636,1739722291761,-151.0,0.000148,2]
[353267637,1739722291771,-384.472713,0.000148,2]
[353267638,1739722291780,-384.472713,0.000148,2]
[353267639,1739722291796,-341.804092,0.000148,2]
[353267640,1739722291806,-341.804092,0.000148,2]
[353267641,1739722291815,-151.0,0.000148,2]
[353267642,1739722291824,-10000.0,0.000148,2]
[353267643,1739722291834,-10000.0,0.000148,2]
[353267644,1739722291843,-10000.0,0.000148,2]
[353267645,1739722291852,-10000.0,0.000148,2]
[353267646,1739722291862,-10000.0,0.000148,2]
[353267647,1739722291871,-10000.0,0.000148,2]
[353267648,1739722291881,-151.0,0.000148,2]
[353267649,1739722291890,-190.102501,0.000148,2]
[353267650,1739722291900,-190.102501,0.000148,2]
[353267651,1739722291909,-198.614322,0.000148,2]
[353267652,1739722291918,-198.614322,0.000148,2]
[353267653,1739722291928,-553.720203,0.000148,2]
[353267654,1739722291937,-151.0,0.000148,2]
[353267655,1739722291946,-553.720203,0.000148,2]
[353267656,1739722291956,-423.955814,0.000148,2]
[353267657,1739722291965,-423.955814,0.000148,2]
[353267658,1739722291974,-235.374187,0.000148,2]
[353267659,1739722291984,-235.374187,0.000148,2]
[353267660,1739722291993,-151.0,0.000148,2]
[353267661,1739722292002,-151.0,0.000148,2]
[353267662,1739722292011,-151.0,0.000148,2]
[353267663,1739722292020,-2689.395126,0.000148,2]
[353267664,1739722292030,-2689.395126,0.000148,2]
[353267665,1739722292045,-279.565284,0.000148,2]
[353267666,1739722292054,-279.565284,0.000148,2]
[353267667,1739722292063,-151.0,0.000148,2]
[353267668,1739722292073,-151.0,0.000148,2]
[353267669,1739722292082,-404451.82575827,0.000148,2]
[353267670,1739722292106,-500.0,0.00012189,2]
[353267671,1739722292115,-1474.25212566,0.000148,2]
[353267672,1739722292127,-1730.84596,0.000148,2]
[353267673,1739722292207,-500.0,0.00012271,2]
[353267674,1739722292219,-500.0,0.00012353,2]
[353267675,1739722292230,-500.0,0.00012435,2]
[353267676,1739722292239,-225.13217216,0.00012518,2]
[353267677,1739722292249,-153.0,0.00013179,2]
[353267678,1739722292259,-12002.41129809,0.000148,2]
[353267679,1739722292270,-2555.7887527,0.000148,2]
[353267680,1739722292282,-436.2736208,0.000148,2]
[353267681,1739722292294,-90569.74567997,0.000148,2]
[353267682,1739722292311,-3158.27562113,0.000137,2]
[353267683,1739722292331,-12236.98408807,0.00011112,2]
[353267684,1739722292341,-1218.79437887,0.000137,2]
[353267685,1739722292351,-96855.98365851,0.000148,2]
[353267686,1739722292360,-305.72,0.000148,2]
[353267687,1739722292369,-305.72,0.000148,2]
[353267688,1739722292378,-151.0,0.000148,2]
[353267689,1739722292388,-225.15803,0.000148,2]
[353267690,1739722292397,-225.15803,0.000148,2]
[353267691,1739722292408,-2010.234707,0.000148,2]
[353267692,1739722292417,-2010.234707,0.000148,2]
[353267693,1739722292426,-270.932697,0.000148,2]
[353267694,1739722292435,-270.932697,0.000148,2]
[353267695,1739722292445,-488.052487,0.000148,2]
[353267696,1739722292454,-488.052487,0.000148,2]
[353267697,1739722292463,-2761.64896526,0.000148,2]
[353267698,1739722292531,-153.0,0.00013178,2]
[353267699,1739722292541,-2604.45835397,0.000137,2]
[353267700,1739722292552,-1325.95192759,0.000137,2]
[353267701,1739722292563,-445.419,0.000137,2]
[353267702,1739722292574,-1.24071844,0.000137,2]
[353267703,1739722292584,-2732.11975637,0.000148,2]
[353267704,1739722292602,-26246.80096236,0.000148,2]
[353267705,1739722292611,-138177.3101094,0.000148,10]
[353267706,1739722292622,-17393.46780308,0.000148,10]
[353267707,1739722292633,-7919.53467144,0.000148,10]
[353267753,1739723431596,-7732.9234,8.836e-05,2]
[353267754,1739723431605,-200.0,8.844e-05,2]
[353267755,1739723431615,-669.8442,8.851e-05,2]
[353267756,1739723431625,-200.0,8.938e-05,2]
[353267757,1739723431634,-775.0832,8.973e-05,2]
[353267758,1739723431644,-757.83,9.52e-05,2]
[353267759,1739723431653,-733.3535217,9.68e-05,2]
[353267760,1739723431662,-200.0,9.719e-05,2]
[353267761,1739723431672,-150.0,9.87e-05,2]
[353267762,1739723431682,-1824.67,9.87e-05,2]
[353267763,1739723431692,-7367.69637762,9.87e-05,2]
[353267764,1739723431704,-2744.08019265,9.87e-05,2]
[353267765,1739723431724,-1855.11603779,9.87e-05,2]
[353267766,1739723431760,-3917.47448981,9.87e-05,2]
[353267767,1739723431772,-820.20713963,9.87e-05,2]
[353267768,1739723431814,-1973.66,9.87e-05,2]
[353267769,1739723431826,-5332.7257625,9.87e-05,2]
[353267770,1739723431835,-459.2742375,0.0001,2]
[353267883,1739723437769,-13689.43291626,0.0001,2]
[353267884,1739723437780,-2558.09809134,0.0001,2]
[353267885,1739723437808,-130652.96367247,0.0001,2]
[353267886,1739723437817,-75756.33455146,0.0001,2]
[353267887,1739723437826,-542.44079569,0.00010037,2]
[353267888,1739723437835,-467.87,0.00010137,2]
[353267889,1739723437844,-299.999999,0.000104,2]
[353267891,1739723437854,-501.0,0.00010411,2]
[353267892,1739723437863,-3492.64,0.00010475,2]
[353267893,1739723437872,-999.99,0.00010475,2]
[353267894,1739723437882,-9999.99,0.00010475,2]
[353267895,1739723437892,-184.50906008,0.00010758,2]
[353267896,1739723437903,-500.0,0.00010773,2]
[353267897,1739723437913,-67924.05836732,0.000108,2]
[353267899,1739723439636,-3701.81020796,0.000108,2]
[353267900,1739723439648,-970.95,0.000108,2]
[353267901,1739723439690,-515.76130684,0.000108,2]
[353267902,1739723439801,-18873.37418169,0.000108,2]
[353267961,1739723445650,-5082.95379668,0.000108,2]
[353267962,1739723445888,-75944.84749886,0.000108,2]
[353267963,1739723445902,-38399.11337211,0.000108,2]
[353267964,1739723445921,-10170.25747416,0.000108,2]
[353267970,1739723470668,1333.0,0.00017425,120]
[353267976,1739723925848,772.42,8.81e-05,2]
[353267977,1739724252200,341.12900472,0.00017425,120]
[353267979,1739724497175,314.38162148,0.00020159,120]
[353267984,1739724631754,-1028.5529,8.836e-05,2]
[353267985,1739724631764,-200.0,8.84e-05,2]
[353267986,1739724631773,-225.3695,8.851e-05,2]
[353267987,1739724631782,-200.0,9.185e-05,2]
[353267988,1739724631793,-200.0,9.719e-05,2]
[353267989,1739724631803,-846.27056935,0.00010136,2]
[353267990,1739724631814,-1153.72943065,0.00010136,2]
[353267991,1739724631823,-166.51,0.00010137,2]
[353267992,1739724631833,-250.0,0.000104,2]
[353267993,1739724631844,-150.0,0.00010493,2]
[353267994,1739724631854,-1600.805,0.00010584,2]
[353267995,1739724631863,-331.46849174,0.00010598,2]
[353267996,1739724631874,-176.58128706,0.00010598,2]
[353267997,1739724631885,-150.0,0.00010696,2]
[353267998,1739724631895,-354.50250184,0.00010696,2]
[353267999,1739724631904,-7654.00328871,0.00010697,2]
[353268000,1739724631916,-6960.0,0.00010697,2]
[353268001,1739724631927,-356.15532581,0.00010697,2]
[353268002,1739724631942,-302.83770475,0.00010697,2]
[353268003,1739724631953,-13595.56114635,0.00010697,2]
[353268004,1739724631967,-9920.78703065,0.00010697,2]
[353268005,1739724631978,-725.67701449,0.00010697,2]
[353268006,1739724632022,-312.69458048,0.00010697,2]
[353268007,1739724632075,-979.02,0.00010697,2]
[353268535,1739724637609,-1221.07790471,0.00010697,2]
[353268539,1739724637663,-191967.16472932,0.00010697,2]
[353268546,1739724637719,-555.82820213,0.00010697,2]
[353268548,1739724637731,-418.64,0.00010697,2]
[353268554,1739724637772,-837.40192961,0.00010697,2]
[353268556,1739724637783,-708.55772326,0.00010697,2]
[353268562,1739724637834,-27201.73918289,0.00010697,2]
[353268568,1739724637884,-48280.27475264,0.00010697,2]
[353268570,1739724637895,-1072.87776473,0.00010697,2]
[353268722,1739724639774,-363.04900701,0.00010697,2]
[353268727,1739724639821,-52600.68441378,0.00010697,2]
[353268734,1739724639874,-49004.0,0.00010697,2]
[353268736,1739724639888,-1417.3985,0.00010697,2]
[353268747,1739724639979,-2265151.65751917,0.00010697,2]
[353268749,1739724639992,-47650.70191419,0.00010697,2]
[353268752,1739724640004,-405.555575,0.00010697,2]
[353268756,1739724640035,-315.01819183,0.00010697,2]
[353268758,1739724640047,-403.26653249,0.00010697,2]
[353268760,1739724640059,-5506.77505769,0.00010697,2]
[353268763,1739724640073,-46945.77370655,0.00010697,2]
[353268765,1739724640085,-1027.43750262,0.00010697,2]
[353268767,1739724640096,-1363.68834929,0.00010697,2]
[353268769,1739724640108,-1216.9044166,0.00010697,2]
[353268771,1739724640125,-341.37498772,0.00010697,2]
[353268774,1739724640140,-2282.75105925,0.00010697,2]
[353268776,1739724640152,-1983.1999998,0.00010697,2]
[353268778,1739724640165,-797.49998,0.00010697,2]
[353268780,1739724640176,-2010.18631509,0.00010697,2]
[353269064,1739724642702,-4220.74957971,0.00010697,2]
[353269067,1739724642714,-102664.7091629,0.00010697,2]
[353269069,1739724642725,-1034.3555,0.00010697,2]
[353269074,1739724642757,-36468.16314166,0.00010697,2]
[353269076,1739724642768,-44796.00034188,0.00010697,2]
[353269078,1739724642779,-18175.09157636,0.00010697,2]
[353269080,1739724642790,-8502.8615102,0.00010697,2]
[353269083,1739724642803,-342393.67672418,0.00010697,2]
[353269085,1739724642815,-669.99823175,0.00010697,2]
[353269091,1739724642867,-11782.01652183,0.00010697,2]
[353269093,1739724642879,-4301.586,0.00010697,2]